bitfinex/quotes_SOLUSD_20260306
["timestamp","ask_amount","ask_price","bid_price","bid_amount"]
[1772789141686,0.56424829,87.379,87.339,9.94963876]
[1772789141857,0.56424829,87.359,87.303,40.09026035]
[1772789142056,11.39130746,87.38,87.303,143.17950126]
[1772789142057,0.56424829,87.38,87.303,143.17950126]
[1772789142253,0.56424829,87.379,87.303,40.09026035]
[1772789142559,0.56424829,87.377,87.306,2.19383402]
[1772789142973,0.56424829,87.377,87.303,177.54258155]
[1772789143280,0.28432314,87.393,87.303,280.27724535]
[1772789143478,0.56424829,87.392,87.305,0.56794282]
[1772789143653,9.14718163,87.4,87.306,0.56794282]
[1772789143854,12.0050872,87.407,87.309,0.56794282]
[1772789144056,0.56424829,87.417,87.313,0.85226596]
[1772789144287,0.56424829,87.417,87.32,0.56794282]
[1772789144460,0.56424829,87.415,87.323,0.56794282]
[1772789144657,9.14718163,87.42,87.326,0.56794282]
[1772789144879,0.56424829,87.433,87.347,3.69383402]
[1772789145068,7.06748543,87.447,87.361,0.56794282]
[1772789145262,7.06748543,87.447,87.362,0.56794282]
[1772789145759,7.06748543,87.447,87.366,4.82477569]
[1772789145966,7.06748543,87.447,87.37,0.56794282]
[1772789146163,0.56424829,87.466,87.374,0.56794282]
[1772789146378,0.56424829,87.466,87.382,0.56794282]
[1772789146578,0.56424829,87.466,87.384,0.28432314]
[1772789146579,12.57856757,87.465,87.384,0.28432314]
[1772789146794,11.43314468,87.465,87.387,0.56794282]
[1772789147087,0.56424829,87.463,87.39,0.56794282]
[1772789147801,0.56424829,87.463,87.392,0.56794282]
[1772789147986,0.56424829,87.489,87.397,0.56794282]
[1772789148283,0.56424829,87.488,87.401,0.56794282]
[1772789148462,11.43026964,87.487,87.408,0.56794282]
[1772789148665,0.56424829,87.485,87.411,0.56794282]
[1772789148878,0.56424829,87.483,87.411,0.56794282]
[1772789149095,0.56424829,87.469,87.411,0.56794282]
[1772789149298,0.56424829,87.468,87.411,0.56794282]
[1772789150088,0.56424829,87.466,87.411,0.56794282]
[1772789150289,0.56424829,87.464,87.411,0.56794282]
[1772789150788,0.56424829,87.462,87.413,0.56794282]
[1772789153192,0.56424829,87.462,87.412,40.04026906]
[1772789153193,0.56424829,87.46,87.415,0.56794282]
[1772789153372,9.71142992,87.46,87.415,0.56794282]
[1772789153572,0.56424829,87.458,87.415,0.56794282]
[1772789153986,0.56424829,87.449,87.409,11.44045901]
[1772789154173,0.56424829,87.439,87.409,11.44045901]
[1772789154372,0.56424829,87.439,87.399,0.56794282]
[1772789155382,0.56424829,87.439,87.401,0.56794282]
[1772789155800,0.56424829,87.469,87.402,1.14413857]
[1772789155992,12.57817543,87.468,87.403,0.56794282]
[1772789156187,0.56424829,87.467,87.403,0.56794282]
[1772789156379,0.56424829,87.465,87.403,0.56794282]
[1772789156578,0.56424829,87.463,87.403,0.56794282]
[1772789157178,11.43275254,87.468,87.403,0.56794282]
[1772789157179,11.43236043,87.471,87.405,0.71010439]
[1772789157390,11.43236043,87.471,87.408,0.56794282]
[1772789158191,0.56424829,87.472,87.407,143.00914112]
[1772789158192,0.56424829,87.472,87.41,0.56794282]
[1772789158391,0.56424829,87.472,87.412,0.56794282]
[1772789158602,0.56424829,87.472,87.414,0.56794282]
[1772789158603,11.99648648,87.472,87.414,0.56794282]
[1772789159005,11.43172415,87.476,87.414,0.56794282]
[1772789159184,1.14542289,87.475,87.414,0.56794282]
[1772789159691,0.56424829,87.473,87.416,0.56794282]
[1772789159895,0.56424829,87.471,87.416,0.56794282]
[1772789160291,11.43146605,87.478,87.416,0.56794282]
[1772789160502,12.57688894,87.478,87.416,0.56794282]
[1772789161699,11.42974705,87.491,87.424,0.60198047]
[1772789161908,11.42974705,87.491,87.425,0.60198047]
[1772789162093,1.14542289,87.502,87.425,0.60198047]
[1772789162094,11.42915775,87.496,87.425,0.60198047]
[1772789162306,11.42844081,87.501,87.428,0.60198047]
[1772789162483,0.58512371,87.499,87.428,0.60198047]
[1772789162683,0.58512371,87.497,87.428,0.60198047]
[1772789162884,0.58512371,87.495,87.428,0.60198047]
[1772789163079,9.14718163,87.5,87.428,0.60198047]
[1772789163080,0.58512371,87.493,87.428,0.60198047]
[1772789163285,1.14542289,87.499,87.428,0.60198047]
[1772789163589,11.42857142,87.5,87.432,142.96824959]
[1772789163911,0.58512371,87.489,87.436,0.60198047]
[1772789164086,0.58512371,87.469,87.433,0.60198047]
[1772789165112,0.58512371,87.478,87.433,0.60198047]
[1772789165305,0.58512371,87.476,87.433,0.60198047]
[1772789165891,0.58512371,87.474,87.434,40.63217466]
[1772789166088,0.58512371,87.472,87.434,40.03019419]
[1772789166290,0.58512371,87.469,87.434,11.43719834]
[1772789166688,9.14718163,87.48,87.434,11.43719834]
[1772789166689,0.58512371,87.478,87.435,0.60198047]
[1772789167801,0.58512371,87.476,87.435,0.60198047]
[1772789168004,0.58512371,87.476,87.436,40.02927855]
[1772789168212,0.58512371,87.476,87.437,0.60198047]
[1772789169217,11.43183766,87.475,87.437,0.60198047]
[1772789169517,0.58512371,87.469,87.436,11.43693673]
[1772789169810,0.58512371,87.467,87.427,11.43811408]
[1772789170395,0.58512371,87.465,87.427,40.03339928]
[1772789170596,0.58512371,87.497,87.429,0.60198047]
[1772789170905,11.42883265,87.498,87.427,40.03339928]
[1772789170906,0.58512371,87.479,87.431,0.60198047]
[1772789171103,0.58512371,87.469,87.427,40.03339928]
[1772789172411,0.58512371,87.469,87.428,0.60198047]
[1772789172597,0.58512371,87.467,87.429,40.63446396]
[1772789172801,0.58512371,87.467,87.429,11.43785242]
[1772789173011,0.58512371,87.459,87.429,11.43785242]
[1772789173915,0.58512371,87.467,87.43,0.60198047]
[1772789174123,0.58512371,87.459,87.42,11.43902997]
[1772789174621,0.28432314,87.467,87.409,28.60088254]
[1772789174622,0.58512371,87.447,87.409,28.60088254]
[1772789175716,0.58512371,87.447,87.403,0.60198047]
[1772789176711,0.58512371,87.445,87.404,11.44112397]
[1772789177219,0.58512371,87.439,87.404,11.44112397]
[1772789179010,0.58512371,87.437,87.402,29.2053619]
[1772789179313,0.58512371,87.437,87.403,0.60198047]
[1772789181126,0.58512371,87.435,87.403,0.60198047]
[1772789181322,0.58512371,87.435,87.403,12.0432166]
[1772789181523,0.58512371,87.435,87.403,11.44123613]
[1772789183018,0.58512371,87.435,87.392,29.20847206]
[1772789183019,0.58512371,87.435,87.401,28.60372689]
[1772789183211,11.43719834,87.434,87.402,0.60198047]
[1772789184002,12.02232205,87.434,87.402,0.60198047]
[1772789184202,0.58512371,87.433,87.403,11.44125487]
[1772789184404,0.58512371,87.429,87.388,11.44321874]
[1772789184719,0.58512371,87.419,87.38,11.44426642]
[1772789185222,0.58512371,87.399,87.362,0.60198047]
[1772789185414,0.58512371,87.389,87.361,11.44675541]
[1772789186203,0.58512371,87.387,87.36,11.44680031]
[1772789186717,0.58512371,87.387,87.351,0.60198047]
[1772789186718,0.58512371,87.387,87.352,11.44793479]
[1772789187021,0.58512371,87.379,87.352,11.44793479]
[1772789187323,0.58512371,87.379,87.346,11.4485918]
[1772789188326,11.44452837,87.378,87.347,0.60198047]
[1772789188528,0.58512371,87.377,87.347,0.60198047]
[1772789188827,0.58512371,87.386,87.347,0.60198047]
[1772789189613,11.44266915,87.393,87.347,0.60198047]
[1772789190209,0.58512371,87.404,87.349,0.60198047]
[1772789190409,0.58512371,87.449,87.353,0.60198047]
[1772789190632,0.58512371,87.429,87.353,0.60198047]
[1772789190927,0.58512371,87.429,87.356,0.60198047]
[1772789191510,0.58029753,87.419,87.356,0.60198047]
[1772789191908,0.58275187,87.409,87.356,0.60198047]
[1772789192321,0.58275187,87.407,87.358,0.62478885]
[1772789192707,0.58275187,87.399,87.358,0.62478885]
[1772789193020,0.58275187,87.389,87.357,11.44727955]
[1772789193613,0.58275187,87.389,87.357,12.0720684]
[1772789193817,0.58275187,87.389,87.358,0.62478885]
[1772789194120,0.58275187,87.397,87.358,0.62478885]
[1772789194732,11.44217126,87.396,87.359,40.06456116]
[1772789195032,12.02492313,87.396,87.36,0.62478885]
[1772789195233,0.58275187,87.395,87.36,0.62478885]
[1772789196024,0.14216157,87.411,87.36,0.62478885]
[1772789196326,0.58275187,87.414,87.36,0.62478885]
[1772789196738,0.58275187,87.414,87.361,40.06364395]
[1772789196928,0.58275187,87.412,87.362,0.62478885]
[1772789197815,0.58275187,87.419,87.362,0.62478885]
[1772789198616,0.58275187,87.428,87.362,0.90911199]
[1772789198837,11.43811408,87.427,87.366,0.62478885]
[1772789199536,0.58275187,87.419,87.366,0.62478885]
[1772789199734,0.58275187,87.409,87.366,0.62478885]
[1772789200536,9.14745815,87.39,87.359,11.44701747]
[1772789200737,0.58275187,87.389,87.359,11.44701747]
[1772789200943,0.58275187,87.387,87.354,28.61897621]
[1772789201141,0.58275187,87.387,87.351,0.62478885]
[1772789202920,0.58275187,87.385,87.352,11.44793479]
[1772789203124,0.58275187,87.385,87.353,0.62478885]
[1772789205046,11.44374256,87.384,87.354,11.44767268]
[1772789205240,0.58275187,87.383,87.354,11.44767268]
[1772789205937,0.28432314,87.401,87.354,11.44767268]
[1772789205938,0.58275187,87.396,87.355,0.62478885]
[1772789206825,11.44230219,87.395,87.355,0.62478885]
[1772789207025,11.4430878,87.389,87.356,11.44741059]
[1772789207233,11.4430878,87.389,87.357,0.62478885]
[1772789207642,0.58275187,87.388,87.357,0.62478885]
[1772789207839,0.58275187,87.379,87.335,0.62478885]
[1772789209327,0.58275187,87.377,87.337,0.62478885]
[1772789212847,0.58275187,87.375,87.339,0.62478885]
[1772789214145,0.58275187,87.375,87.338,40.07419449]
[1772789214146,0.58275187,87.369,87.322,0.62478885]
[1772789215044,0.58275187,87.369,87.321,40.0819963]
[1772789215045,11.44570728,87.369,87.324,0.62478885]
[1772789216634,0.58275187,87.368,87.324,0.62478885]
[1772789218638,11.4459693,87.367,87.326,0.62478885]
[1772789218852,0.58275187,87.368,87.326,0.62478885]
[1772789219635,0.58275187,87.367,87.326,0.62478885]
[1772789219831,0.58275187,87.359,87.326,0.62478885]
[1772789220656,0.58275187,87.357,87.327,11.45121211]
[1772789221658,0.58275187,87.357,87.328,0.57262599]
[1772789222155,11.44671997,87.362,87.328,0.57262599]
[1772789222359,12.05917531,87.362,87.328,0.57262599]
[1772789222739,0.61245534,87.361,87.329,11.45094985]
[1772789222957,0.61245534,87.361,87.33,0.57262599]
[1772789224856,0.61245534,87.372,87.332,0.57262599]
[1772789225668,0.61245534,87.407,87.335,0.57262599]
[1772789225848,0.61245534,87.407,87.336,0.57262599]
[1772789226647,0.61245534,87.414,87.337,0.57262599]
[1772789226863,0.61245534,87.412,87.342,0.28432314]
[1772789227049,0.61245534,87.412,87.343,0.57262599]
[1772789227770,0.61245534,87.42,87.343,0.57262599]
[1772789227941,35.62820568,87.429,87.348,0.57262599]
[1772789227942,0.61245534,87.427,87.348,0.57262599]
[1772789228355,0.61245534,87.427,87.351,0.57262599]
[1772789228867,0.61245534,87.425,87.356,0.85694913]
[1772789229043,0.61245534,87.425,87.357,0.57262599]
[1772789229450,7.0333097,87.429,87.36,0.57262599]
[1772789229643,0.61245534,87.45,87.372,0.57262599]
[1772789229857,11.43523653,87.449,87.372,0.57262599]
[1772789230161,0.61245534,87.448,87.376,0.57262599]
[1772789230964,0.61245534,87.446,87.381,0.57262599]
[1772789231161,0.61245534,87.439,87.381,0.57262599]
[1772789231860,0.61245534,87.429,87.381,0.57262599]
[1772789232063,0.61245534,87.409,87.378,0.57262599]
[1772789232262,0.61245534,87.409,87.373,0.57262599]
[1772789232860,11.44023634,87.411,87.375,0.57262599]
[1772789233361,0.61245534,87.415,87.375,0.57262599]
[1772789233566,0.61245534,87.399,87.357,0.57262599]
[1772789233757,9.14745815,87.39,87.354,11.44767268]
[1772789234059,0.61245534,87.399,87.355,0.57262599]
[1772789235575,0.61245534,87.397,87.357,0.57262599]
[1772789237363,0.61245534,87.414,87.357,0.57262599]
[1772789237555,0.61245534,87.412,87.359,0.57262599]
[1772789238468,0.61245534,87.409,87.359,0.57262599]
[1772789239762,0.61245534,87.407,87.361,0.57262599]
[1772789241466,9.14745815,87.4,87.361,0.57262599]
[1772789241765,0.61245534,87.399,87.361,0.57262599]
[1772789243061,0.61245534,87.407,87.363,0.57262599]
[1772789243266,0.61245534,87.425,87.363,0.57262599]
[1772789243774,0.61245534,87.419,87.363,0.57262599]
[1772789244549,0.61245534,87.428,87.366,0.57262599]
[1772789245269,0.61245534,87.427,87.368,0.57262599]
[1772789247248,0.61245534,87.425,87.37,0.57262599]
[1772789249270,0.61245534,87.417,87.372,0.57262599]
[1772789251348,0.61245534,87.417,87.374,0.57262599]
[1772789252055,0.62522711,87.429,87.374,0.57262599]
[1772789253550,0.62522711,87.429,87.376,0.5629123]
[1772789253763,0.62522711,87.427,87.376,0.5629123]
[1772789256576,0.62522711,87.425,87.378,0.5629123]
[1772789257072,0.62522711,87.419,87.377,11.44465934]
[1772789257378,0.62522711,87.419,87.378,0.5629123]
[1772789257769,0.62522711,87.427,87.378,0.5629123]
[1772789257965,0.62522711,87.425,87.378,0.5629123]
[1772789259077,0.62522711,87.425,87.379,40.05539087]
[1772789259282,0.62522711,87.445,87.38,0.5629123]
[1772789260193,0.62522711,87.445,87.381,0.5629123]
[1772789260485,0.62522711,87.439,87.381,0.5629123]
[1772789261190,0.62522711,87.437,87.383,0.5629123]
[1772789261880,9.13747977,87.43,87.383,0.5629123]
[1772789262065,0.62522711,87.429,87.383,0.5629123]
[1772789263275,0.62522711,87.427,87.385,0.5629123]
[1772789265300,0.62522711,87.425,87.387,0.5629123]
[1772789267198,0.62522711,87.425,87.386,11.44348064]
[1772789267370,0.62522711,87.423,87.38,0.5629123]
[1772789267886,0.62522711,87.419,87.367,12.0088816]
[1772789268086,0.62522711,87.409,87.368,0.5629123]
[1772789269492,0.62522711,87.407,87.37,0.5629123]
[1772789272097,0.62522711,87.407,87.372,0.5629123]
[1772789273196,0.62522711,87.405,87.372,0.5629123]
[1772789273896,11.44112397,87.404,87.368,11.44583829]
[1772789274195,0.62522711,87.403,87.369,0.5629123]
[1772789275074,0.62522711,87.403,87.368,11.44583829]
[1772789275598,0.62522711,87.399,87.368,11.44583829]
[1772789276987,0.62522711,87.397,87.363,11.44636334]
[1772789277677,40.04668298,87.398,87.353,11.44780373]
[1772789277678,0.62522711,87.389,87.353,11.44780373]
[1772789279889,0.62522711,87.387,87.348,0.5629123]
[1772789280199,0.62522711,87.387,87.353,11.44780373]
[1772789280413,0.62522711,87.379,87.353,11.44780373]
[1772789280587,0.62522711,87.387,87.354,0.5629123]
[1772789280780,0.62522711,87.395,87.354,0.5629123]
[1772789281219,12.06758652,87.395,87.354,0.5629123]
[1772789281511,0.60895957,87.394,87.354,0.5629123]
[1772789282204,0.60895957,87.392,87.356,0.57736618]
[1772789282799,0.60895957,87.389,87.355,11.44754164]
[1772789283190,0.60895957,87.389,87.356,0.57736618]
[1772789283391,0.60895957,87.379,87.34,0.57736618]
[1772789284013,0.60895957,87.379,87.347,0.57736618]
[1772789284509,0.60895957,87.377,87.347,0.57736618]
[1772789285390,0.60895957,87.377,87.353,12.02516991]
[1772789285702,0.60895957,87.377,87.353,11.44780373]
[1772789286588,12.0537499,87.376,87.352,15.57506271]
[1772789286787,0.60895957,87.375,87.352,15.57506271]
[1772789287214,0.60895957,87.375,87.352,26.4456003]
[1772789287630,0.60895957,87.375,87.352,27.02296648]
[1772789288610,11.44348064,87.386,87.355,0.57736618]
[1772789289223,0.60895957,87.387,87.355,0.57736618]
[1772789289511,12.05234883,87.387,87.355,0.57736618]
[1772789291508,0.60895957,87.386,87.357,0.57736618]
[1772789292405,11.44177851,87.399,87.357,0.57736618]
[1772789292797,12.0500845,87.404,87.357,0.57736618]
[1772789293098,0.60895957,87.403,87.357,0.57736618]
[1772789293614,0.60895957,87.389,87.353,0.57736618]
[1772789294914,0.60895957,87.387,87.353,0.57736618]
[1772789295822,11.44321874,87.388,87.352,26.44559938]
[1772789295823,0.60895957,87.379,87.352,14.99769653]
[1772789296234,0.60895957,87.369,87.342,0.57736618]
[1772789297926,0.60895957,87.369,87.324,28.62879684]
[1772789297927,0.60895957,87.367,87.334,12.0275959]
[1772789298308,0.60895957,87.367,87.335,0.57736618]
[1772789299529,11.44583829,87.368,87.335,0.57736618]
[1772789300031,0.60895957,87.367,87.337,0.57736618]
[1772789300408,0.60895957,87.367,87.336,11.45003206]
[1772789300908,0.60895957,87.367,87.337,0.57736618]
[1772789301528,0.60895957,87.367,87.332,0.57736618]
[1772789302618,0.60895957,87.365,87.334,0.57736618]
[1772789304834,0.60895957,87.363,87.336,0.57736618]
[1772789305925,0.60895957,87.363,87.335,11.45016316]
[1772789306327,0.60895957,87.363,87.335,12.02752934]
[1772789306825,0.60895957,87.361,87.336,0.57736618]
[1772789307127,0.60895957,87.361,87.322,0.57736618]
[1772789307330,0.60895957,87.359,87.322,0.57736618]
[1772789308324,11.44662439,87.362,87.322,0.57736618]
[1772789309342,0.60895957,87.362,87.324,0.57736618]
[1772789311710,0.58163304,87.359,87.326,0.56081338]
[1772789313736,0.58163304,87.365,87.328,0.56081338]
[1772789314531,0.58163304,87.373,87.328,0.56081338]
[1772789314734,28.6077505,87.389,87.328,0.56081338]
[1772789314735,0.58163304,87.388,87.328,0.56081338]
[1772789315123,0.58163304,87.379,87.328,0.56081338]
[1772789315421,0.58163304,87.369,87.328,0.56081338]
[1772789316519,0.58163304,87.359,87.33,0.56081338]
[1772789317022,0.58163304,87.359,87.329,11.45094985]
[1772789317235,0.58163304,87.359,87.33,0.56081338]
[1772789318641,0.58163304,87.349,87.323,0.56081338]
[1772789320233,0.58163304,87.349,87.321,11.45199894]
[1772789320441,0.58163304,87.349,87.322,0.56081338]
[1772789320640,0.58163304,87.349,87.324,0.56081338]
[1772789320818,0.58163304,87.355,87.324,0.56081338]
[1772789321637,0.58163304,87.349,87.324,0.56081338]
[1772789322036,12.02907038,87.356,87.324,0.56081338]
[1772789322240,0.58163304,87.355,87.324,0.56081338]
[1772789322439,11.44693023,87.36,87.324,0.56081338]
[1772789322837,12.02833084,87.362,87.325,40.08016031]
[1772789323141,0.58163304,87.362,87.326,0.56081338]
[1772789323443,11.44619616,87.366,87.326,0.56081338]
[1772789323947,0.58163304,87.366,87.326,0.56081338]
[1772789324446,0.58163304,87.373,87.326,0.56081338]
[1772789325532,0.58163304,87.373,87.328,0.56081338]
[1772789325754,0.58163304,87.379,87.328,0.56081338]
[1772789327345,11.44345464,87.387,87.328,0.56081338]
[1772789327649,12.02508768,87.387,87.33,0.56081338]
[1772789327832,0.58163304,87.396,87.331,0.56081338]
[1772789329136,28.59886665,87.417,87.334,0.56081338]
[1772789329345,11.4405313,87.409,87.334,0.56081338]
[1772789329546,11.4405313,87.409,87.337,0.56081338]
[1772789329742,12.02159784,87.413,87.343,0.56081338]
[1772789330050,0.58163304,87.407,87.344,0.56081338]
[1772789330551,12.02242666,87.407,87.344,0.56081338]
[1772789330760,0.58163304,87.409,87.344,0.56081338]
[1772789330949,0.58163304,87.419,87.344,0.56081338]
[1772789331344,0.58163304,87.419,87.347,0.56081338]
[1772789331547,0.58163304,87.419,87.35,0.56081338]
[1772789331854,0.58163304,87.417,87.354,0.56081338]
[1772789332148,0.58163304,87.417,87.356,0.56081338]
[1772789333042,3.66061774,87.41,87.356,0.56081338]
[1772789333238,0.58163304,87.409,87.356,0.56081338]
[1772789333960,0.58163304,87.409,87.358,0.56081338]
[1772789334640,0.58163304,87.422,87.36,0.56081338]
[1772789334852,0.58163304,87.422,87.357,188.88011262]
[1772789334853,0.58163304,87.422,87.361,0.56081338]
[1772789335957,0.58163304,87.422,87.364,0.56081338]
[1772789336655,0.58163304,87.422,87.363,0.28432314]
[1772789336656,0.58163304,87.429,87.366,0.56081338]
[1772789336841,0.58163304,87.429,87.367,0.56081338]
[1772789337946,0.58163304,87.427,87.37,0.56081338]
[1772789340056,11.43824491,87.426,87.373,0.56081338]
[1772789340262,0.58163304,87.425,87.373,0.56081338]
[1772789340668,0.58163304,87.447,87.376,0.56081338]
[1772789341057,0.58163304,87.447,87.381,0.56081338]
[1772789341274,0.58163304,87.439,87.381,0.56081338]
[1772789342462,0.5832763,87.437,87.383,0.61595928]
[1772789344265,11.43693673,87.436,87.384,40.05309896]
[1772789344563,0.5832763,87.435,87.385,0.61595928]
[1772789345360,0.5832763,87.435,87.386,0.61595928]
[1772789345764,0.5832763,87.451,87.386,0.61595928]
[1772789345966,0.4688063,87.451,87.386,0.61595928]
[1772789346467,0.4688063,87.451,87.385,0.28432314]
[1772789346468,28.58743753,87.451,87.388,0.61595928]
[1772789347458,3.66061774,87.45,87.388,0.61595928]
[1772789347968,0.5832763,87.449,87.388,0.61595928]
[1772789348465,0.5832763,87.447,87.39,0.61595928]
[1772789348667,0.5832763,87.439,87.39,0.61595928]
[1772789348870,0.5832763,87.429,87.39,0.61595928]
[1772789349060,0.5832763,87.429,87.385,11.44354448]
[1772789349258,0.5832763,87.429,87.383,0.61595928]
[1772789349259,0.5832763,87.419,87.383,0.61595928]
[1772789349571,0.5832763,87.419,87.384,0.61595928]
[1772789350665,0.5832763,87.417,87.384,0.61595928]
[1772789351065,0.5832763,87.417,87.383,11.44377612]
[1772789351569,0.5832763,87.417,87.383,12.0597354]
[1772789353177,0.5832763,87.415,87.375,0.61595928]
[1772789353381,0.5832763,87.409,87.349,0.61595928]
[1772789354484,0.5832763,87.399,87.349,0.61595928]
[1772789354768,97.23620387,87.416,87.349,0.61595928]
[1772789354769,0.5832763,87.389,87.349,0.61595928]
[1772789354960,0.5832763,87.389,87.343,12.06503785]
[1772789355274,0.5832763,87.387,87.346,0.61595928]
[1772789356955,11.44321874,87.388,87.346,0.61595928]
[1772789358071,0.5832763,87.395,87.348,0.61595928]
[1772789358281,11.44186685,87.399,87.348,0.61595928]
[1772789358784,0.5832763,87.398,87.348,0.61595928]
[1772789360177,0.28432314,87.421,87.35,0.61595928]
[1772789360178,0.5832763,87.396,87.35,0.61595928]
[1772789362176,0.5832763,87.389,87.349,11.44832797]
[1772789362378,0.5832763,87.389,87.34,28.62373943]
[1772789362379,0.5832763,87.387,87.344,0.61595928]
[1772789365084,0.5832763,87.385,87.345,11.44885225]
[1772789365790,0.5832763,87.385,87.345,12.06481153]
[1772789366274,0.5832763,87.383,87.346,0.61595928]
[1772789366476,0.5832763,87.379,87.346,0.61595928]
[1772789367193,0.5832763,87.379,87.333,0.61595928]
[1772789367485,3.66061774,87.38,87.274,45.8323585]
[1772789367486,0.5832763,87.359,87.318,0.61595928]
[1772789367667,0.5832763,87.349,87.312,11.45314559]
[1772789367869,0.5832763,87.349,87.314,0.61595928]
[1772789368279,0.28432314,87.371,87.314,0.61595928]
[1772789368280,0.5832763,87.347,87.314,0.61595928]
[1772789368484,11.44785991,87.353,87.315,28.63185433]
[1772789368694,11.44785991,87.353,87.327,0.61595928]
[1772789370289,0.5832763,87.357,87.329,0.61595928]
[1772789370683,11.44741059,87.356,87.329,0.61595928]
[1772789370990,0.5832763,87.355,87.326,0.61595928]
[1772789371485,0.5832763,87.355,87.326,12.06730252]
[1772789371787,0.5832763,87.355,87.327,0.57921837]
[1772789372492,0.59343077,87.353,87.327,0.57921837]
[1772789372788,0.59343077,87.353,87.319,0.57921837]
[1772789373790,0.59343077,87.353,87.323,11.45167309]
[1772789373971,11.44793479,87.352,87.327,0.57921837]
[1772789374573,0.59343077,87.351,87.322,11.45186773]
[1772789374766,11.44793479,87.352,87.32,0.77921837]
[1772789374767,0.0254223,87.349,87.325,7.87865181]
[1772789374978,0.0254223,87.349,87.32,0.2]
[1772789376692,40.06914789,87.349,87.32,0.2]
[1772789379392,40.06914789,87.349,87.32,0.82101039]
[1772789379574,40.06914789,87.349,87.32,0.2]
[1772789381395,40.06914789,87.349,87.32,1e-08]
[1772789382103,40.06914789,87.349,87.32,0.6210104]
[1772789382278,40.06914789,87.349,87.321,0.62101039]
[1772789382691,11.44727955,87.357,87.321,0.62101039]
[1772789383379,11.44727955,87.357,87.323,0.62101039]
[1772789384182,40.06547843,87.357,87.323,0.62101039]
[1772789385803,40.06547843,87.357,87.325,0.62101039]
[1772789386102,11.44727955,87.357,87.325,0.62101039]
[1772789387305,3.66090425,87.37,87.327,0.62101039]
[1772789387599,3.66090425,87.36,87.327,0.62101039]
[1772789389485,3.66090425,87.37,87.329,0.62101039]
[1772789390189,3.66090425,87.36,87.329,0.62101039]
[1772789391909,11.44701747,87.359,87.331,0.62101039]
[1772789394295,40.06456116,87.359,87.331,0.62101039]
[1772789395215,3.66090425,87.35,87.321,0.62101039]
[1772789395396,3.66090425,87.35,87.322,0.62101039]
[1772789395918,40.06456116,87.359,87.322,0.62101039]
[1772789397292,3.66090425,87.35,87.322,0.62101039]
[1772789398516,40.06456116,87.359,87.322,0.62101039]
[1772789398696,40.06456116,87.359,87.324,0.62101039]
[1772789398902,40.06456116,87.359,87.32,1e-08]
[1772789398903,3.66090425,87.35,87.32,0.6210104]
[1772789401011,3.66090425,87.35,87.275,91.6633975]
[1772789401012,3.66090425,87.33,87.289,0.62101039]
[1772789401208,3.66090425,87.32,87.289,0.62101039]
[1772789401615,3.66090425,87.31,87.299,1e-08]
[1772789401805,3.66090425,87.32,87.299,1e-08]
[1772789402203,3.66090425,87.34,87.301,0.62101039]
[1772789402409,11.44701747,87.359,87.301,0.62101039]
[1772789402723,40.06456116,87.359,87.301,0.62101039]
[1772789403018,11.44701747,87.359,87.303,0.62101039]
[1772789404115,40.05997549,87.369,87.305,0.62101039]
[1772789404497,11.44570728,87.369,87.305,0.62101039]
[1772789404907,3.66090425,87.36,87.305,0.62101039]
[1772789405596,11.44570728,87.369,87.305,0.62101039]
[1772789405597,3.66090425,87.35,87.305,0.62101039]
[1772789406309,3.66090425,87.36,87.307,0.62101039]
[1772789406710,3.66090425,87.35,87.307,0.62101039]
[1772789407108,3.66090425,87.34,87.307,0.62101039]
[1772789408124,3.66090425,87.34,87.301,12.07554009]
[1772789408326,3.66090425,87.33,87.299,1e-08]
[1772789408727,3.66090425,87.32,87.299,1e-08]
[1772789409604,3.66090425,87.33,87.299,1e-08]
[1772789409805,40.07373566,87.339,87.299,0.6210104]
[1772789410008,3.66090425,87.32,87.299,1e-08]
[1772789410423,40.08291436,87.319,87.299,1e-08]
[1772789412307,3.66090425,87.31,87.299,1e-08]
[1772789412524,3.66090425,87.32,87.299,1e-08]
[1772789413422,0.28432314,87.336,87.299,1e-08]
[1772789413627,40.07465334,87.337,87.299,1e-08]
[1772789413628,3.66090425,87.33,87.299,1e-08]
[1772789413808,40.07465334,87.337,87.299,1e-08]
[1772789414218,3.66090425,87.33,87.299,1e-08]
[1772789414427,3.66090425,87.32,87.299,1e-08]
[1772789414629,40.08291436,87.319,87.299,1e-08]
[1772789415327,0.02016464,87.318,87.299,1e-08]
[1772789415755,0.02016464,87.318,87.28,0.82101039]
[1772789415756,0.28432314,87.318,87.28,0.2]
[1772789416026,0.28432314,87.318,87.26,1e-08]
[1772789416027,0.28432314,87.289,87.26,1e-08]
[1772789416225,3.66090425,87.28,87.26,1e-08]
[1772789416409,0.59946033,87.279,87.25,1e-08]
[1772789416825,40.10174385,87.278,87.25,1e-08]
[1772789417224,11.4576411,87.278,87.239,9.96276322]
[1772789417533,11.4576411,87.278,87.239,38.61967125]
[1772789418418,11.4576411,87.278,87.239,9.96276322]
[1772789418627,0.59946033,87.277,87.239,9.96276322]
[1772789418834,0.59946033,87.275,87.233,11.46344918]
[1772789419132,0.59946033,87.275,87.239,0.5935648]
[1772789419733,0.59946033,87.269,87.239,0.5935648]
[1772789419929,40.10266281,87.276,87.239,0.5935648]
[1772789420238,40.09826699,87.286,87.239,0.5935648]